bitfinex/quotes_SOLUSD_20220210
["timestamp","ask_amount","ask_price","bid_price","bid_amount"]
[1644499619609,13.2329,113.42,113.32,42.01139522]
[1644499619805,13.2329,113.42,113.33,12.68]
[1644499620010,13.2329,113.42,113.34,40.98165022]
[1644499620410,13.2329,113.42,113.34,40.48165022]
[1644499620809,13.2329,113.42,113.34,53.71405022]
[1644499621212,0.25,113.42,113.34,55.67720976]
[1644499621411,13.2318,113.43,113.34,55.42720976]
[1644499621610,13.4818,113.43,113.34,53.71405022]
[1644499622911,13.4818,113.43,113.34,55.42720976]
[1644499623110,0.25,113.43,113.35,12.68]
[1644499623330,13.2304,113.44,113.36,56.9278517]
[1644499623532,4.409,113.47,113.36,58.64101124]
[1644499623732,4.409,113.47,113.37,1.71315954]
[1644499623935,12.68,113.5,113.39,35.04757712]
[1644499623936,1.25262644,113.5,113.39,35.04757712]
[1644499624135,1.25262644,113.5,113.41,34.4648492]
[1644499624334,1.25262644,113.51,113.41,34.7148492]
[1644499624534,13.2233,113.51,113.41,47.9399492]
[1644499624935,13.2233,113.51,113.43,37.60946537]
[1644499626840,13.2233,113.51,113.43,50.83216537]
[1644499627641,1.25262644,113.53,113.43,50.83216537]
[1644499627940,1.25262644,113.54,113.43,65.47532491]
[1644499628140,5.65862644,113.55,113.45,13.2204]
[1644499628340,1.25262644,113.54,113.46,47.55801862]
[1644499628541,4.405,113.53,113.47,0.024]
[1644499628942,17.625,113.53,113.47,0.024]
[1644499629340,13.22,113.53,113.47,0.024]
[1644499629746,13.47,113.53,113.47,0.024]
[1644499629944,14.72262644,113.53,113.46,47.53401862]
[1644499630246,13.47,113.53,113.46,47.53401862]
[1644499630445,13.47,113.53,113.46,47.55801862]
[1644499630642,14.72262644,113.53,113.46,47.55801862]
[1644499631645,13.47,113.53,113.46,47.55801862]
[1644499632145,13.47,113.53,113.46,0.024]
[1644499633650,14.72262644,113.53,113.46,0.024]
[1644499634751,13.47,113.53,113.46,0.024]
[1644499635151,13.47,113.53,113.45,55.59603867]
[1644499635353,13.47,113.53,113.45,42.37573867]
[1644499636457,4.405,113.52,113.45,42.37573867]
[1644499636651,17.6265,113.52,113.45,42.37573867]
[1644499636851,17.6265,113.52,113.45,42.39973867]
[1644499637052,13.2215,113.52,113.45,42.39973867]
[1644499638055,4.405,113.53,113.45,55.62003867]
[1644499638253,14.47262644,113.54,113.45,55.59603867]
[1644499638456,13.22,113.54,113.46,0.024]
[1644499639855,13.22,113.54,113.45,53.12003867]
[1644499640256,13.47,113.54,113.45,53.12003867]
[1644499641058,4.405,113.53,113.45,53.12003867]
[1644499641258,13.2213,113.52,113.45,53.12003867]
[1644499644658,13.4713,113.52,113.45,53.12003867]
[1644499644959,13.4713,113.52,113.45,13.2203]
[1644499645158,13.4713,113.52,113.44,13.2217]
[1644499645558,26.1513,113.52,113.4,44.0759]
[1644499645759,4.406,113.51,113.4,44.0759]
[1644499645962,13.2242,113.5,113.41,38.30481411]
[1644499647962,13.2242,113.5,113.42,13.2232]
[1644499648862,13.2242,113.5,113.43,40.95056876]
[1644499649263,13.2242,113.5,113.42,13.2232]
[1644499649462,13.2242,113.5,113.41,13.2254]
[1644499649668,4.407,113.49,113.38,1.71315954]
[1644499649862,13.2276,113.47,113.38,1.71315954]
[1644499650262,13.2276,113.47,113.38,44.90819876]
[1644499650464,13.2276,113.47,113.37,13.23]
[1644499650664,4.408,113.46,113.37,13.23]
[1644499650863,13.2301,113.44,113.37,13.23]
[1644499651565,13.2301,113.44,113.37,56.13462564]
[1644499651766,13.4801,113.44,113.37,56.13462564]
[1644499652966,13.4801,113.44,113.35,1.24828473]
[1644499653167,13.4801,113.44,113.36,13.2314]
[1644499653367,17.6412,113.43,113.36,13.2314]
[1644499654067,13.2322,113.43,113.36,61.60929017]
[1644499655066,13.2322,113.43,113.36,13.2314]
[1644499656171,13.23,113.44,113.37,42.43490714]
[1644499656369,13.23,113.44,113.37,55.68920714]
[1644499656569,13.23,113.44,113.37,55.66520714]
[1644499657192,13.23,113.44,113.36,0.024]
[1644499657393,13.48,113.44,113.36,0.024]
[1644499658797,13.48,113.44,113.36,13.2555]
[1644499661496,13.48,113.44,113.37,34.75623979]
[1644499661795,13.48,113.44,113.37,34.78023979]
[1644499662497,13.48,113.44,113.37,48.01073979]
[1644499662699,13.48,113.44,113.37,47.98673979]
[1644499666205,0.25,113.44,113.37,47.98673979]
[1644499666407,0.25,113.44,113.37,49.69556009]
[1644499666605,13.93262644,113.49,113.37,62.64956009]
[1644499666805,1.25262644,113.5,113.37,62.62556009]
[1644499667006,4.407,113.49,113.38,0.024]
[1644499667210,4.407,113.49,113.4,13.2265]
[1644499667406,4.407,113.49,113.41,40.12482092]
[1644499667608,4.407,113.49,113.41,40.14882092]
[1644499668409,13.2264,113.47,113.41,40.14882092]
[1644499668610,13.2264,113.47,113.41,40.12482092]
[1644499669013,13.2264,113.47,113.41,53.35062092]
[1644499670314,13.2264,113.47,113.41,40.12482092]
[1644499671315,12.7264,113.47,113.41,40.12482092]
[1644499671913,12.7264,113.47,113.4,13.2269]
[1644499672316,12.7264,113.47,113.4,0.024]
[1644499672520,4.407,113.46,113.4,0.024]
[1644499672718,13.2304,113.45,113.37,0.024]
[1644499672916,4.408,113.44,113.36,0.024]
[1644499673315,4.409,113.46,113.36,0.024]
[1644499673516,28.6374623,113.47,113.36,0.024]
[1644499673815,58.03372644,113.47,113.37,13.2301]
[1644499674018,58.03372644,113.47,113.38,43.75623502]
[1644499674216,13.2304,113.44,113.39,0.024]
[1644499674415,13.2304,113.44,113.38,43.73223502]
[1644499675117,13.4804,113.44,113.38,43.73223502]
[1644499675517,13.4804,113.44,113.36,0.024]
[1644499675716,13.4804,113.44,113.38,13.2295]
[1644499675917,13.4804,113.44,113.36,0.024]
[1644499676718,17.8894,113.44,113.36,0.024]
[1644499677817,17.8894,113.44,113.36,13.2556]
[1644499679022,17.6394,113.44,113.36,13.2556]
[1644499682326,13.2304,113.44,113.36,13.2556]
[1644499682522,13.4804,113.44,113.36,13.2556]
[1644499682724,13.4804,113.44,113.37,37.72958004]
[1644499682922,13.4804,113.44,113.37,0.024]
[1644499683123,13.4804,113.44,113.36,13.2316]
[1644499683926,13.4804,113.44,113.36,51.73119393]
[1644499687529,13.4804,113.44,113.36,13.2316]
[1644499687828,19.14202644,113.44,113.35,13.2573]
[1644499688029,1.25262644,113.42,113.35,13.2333]
[1644499688232,13.2339,113.41,113.36,0.024]
[1644499688433,13.2339,113.41,113.34,0.024]
[1644499688633,13.2339,113.41,113.33,48.15575525]
[1644499689433,13.2339,113.41,113.34,13.2339]
[1644499689732,13.2339,113.41,113.34,0.024]
[1644499689934,13.2339,113.41,113.33,48.15575525]
[1644499690858,13.2339,113.41,113.33,61.39065525]
[1644499691034,13.2339,113.41,113.33,13.2589]
[1644499691235,13.2339,113.41,113.33,0.024]
[1644499691836,13.4839,113.41,113.33,0.024]
[1644499693336,15.71512154,113.41,113.33,0.024]
[1644499693534,15.46512154,113.41,113.33,0.024]
[1644499693735,13.2339,113.41,113.33,0.024]
[1644499694339,13.2383,113.38,113.33,0.024]
[1644499694537,13.2383,113.38,113.31,0.0796]
[1644499694737,19.87952154,113.38,113.31,0.0796]
[1644499694936,17.6483,113.38,113.31,0.0796]
[1644499695738,13.2383,113.38,113.31,0.0796]
[1644499696841,17.6483,113.38,113.31,0.0796]
[1644499697240,17.8983,113.38,113.31,0.0796]
[1644499697442,13.2383,113.38,113.31,0.0796]
[1644499697640,13.2357,113.39,113.31,0.0796]
[1644499697842,13.2357,113.39,113.32,0.024]
[1644499698040,13.2357,113.39,113.31,0.0796]
[1644499698841,13.4857,113.39,113.31,0.0796]
[1644499699846,13.4857,113.39,113.33,38.64512944]
[1644499700345,13.4857,113.39,113.33,38.14512944]
[1644499701146,0.25,113.39,113.33,51.38072944]
[1644499701348,13.2346,113.4,113.33,51.38072944]
[1644499704951,13.4846,113.4,113.33,51.38072944]
[1644499710468,0.25,113.4,113.33,51.38072944]
[1644499710668,0.25,113.4,113.33,51.40472944]
[1644499710968,17.6434,113.41,113.33,51.40472944]
[1644499711168,13.2334,113.41,113.33,51.40472944]
[1644499714675,13.4834,113.41,113.33,51.40472944]
[1644499716078,14.73602644,113.41,113.33,51.40472944]
[1644499720378,1.25262644,113.41,113.34,12.68]
[1644499720584,1.25262644,113.41,113.35,37.69877623]
[1644499720779,1.25262644,113.45,113.37,42.08889151]
[1644499720979,4.409,113.52,113.37,42.08889151]
[1644499720980,1.25262644,113.47,113.37,107.70889151]
[1644499721180,1.25262644,113.48,113.37,113.95889151]
[1644499721382,1.25262644,113.5,113.39,41.26082896]
[1644499721678,1.25262644,113.49,113.41,40.35630742]
[1644499721881,2.49467376,113.53,113.42,12.68]
[1644499721882,1.25262644,113.5,113.42,12.68]
[1644499722081,1.25262644,113.5,113.42,14.4109751]
[1644499722282,1.25262644,113.5,113.43,37.15389144]
[1644499722680,1.25262644,113.51,113.43,37.15389144]
[1644499723183,1.25262644,113.52,113.43,37.15389144]
[1644499723881,1.50262644,113.52,113.43,50.37449144]
[1644499724381,1.25262644,113.52,113.44,4.406]
[1644499724581,1.25262644,113.52,113.45,45.17070844]
[1644499724781,1.25262644,113.53,113.45,45.17070844]
[1644499724981,1.25262644,113.53,113.47,34.28977246]
[1644499725182,1.25262644,113.54,113.47,34.28977246]
[1644499725380,1.25262644,113.55,113.47,34.28977246]
[1644499725582,1.25262644,113.56,113.47,47.21977246]
[1644499725784,1.25262644,113.56,113.49,35.24278168]
[1644499725981,1.25262644,113.56,113.51,13.2143]
[1644499726181,1.25262644,113.56,113.51,53.64157867]
[1644499726381,1.25262644,113.57,113.51,53.64157867]
[1644499726583,1.25262644,113.58,113.51,13.2143]
[1644499726786,1.2799223,113.58,113.51,13.2143]
[1644499726983,14.46822644,113.58,113.51,13.2143]
[1644499727185,1.25262644,113.57,113.49,13.2162]
[1644499727385,5.65662644,113.57,113.48,4.404]
[1644499727585,5.65662644,113.57,113.49,36.04252715]
[1644499727586,1.25262644,113.56,113.49,36.04252715]
[1644499727785,1.25262644,113.57,113.49,36.04252715]
[1644499727984,13.2181,113.56,113.49,36.04252715]
[1644499728486,1.25262644,113.57,113.49,49.25972715]
[1644499728886,4.43129586,113.58,113.49,49.25972715]
[1644499729386,5.6839223,113.58,113.49,49.25972715]
[1644499729585,4.43129586,113.58,113.49,49.25972715]
[1644499729785,18.9003223,113.58,113.49,49.25972715]
[1644499730485,17.64769586,113.58,113.49,49.25972715]
[1644499730884,17.89769586,113.58,113.49,49.25972715]
[1644499731089,13.49369586,113.58,113.49,49.25972715]
[1644499732287,0.27729586,113.58,113.49,49.25972715]
[1644499732685,0.02729586,113.58,113.49,49.25972715]
[1644499734887,0.02729586,113.58,113.49,49.50972715]
[1644499735088,0.02729586,113.59,113.49,49.50972715]
[1644499736091,0.02729586,113.59,113.49,51.24070225]
[1644499736287,0.02729586,113.6,113.49,51.24070225]
[1644499736488,0.02729586,113.6,113.49,63.92070225]
[1644499737091,0.02729586,113.62,113.5,4.403]
[1644499737391,0.02729586,113.62,113.52,13.2115]
[1644499737392,0.02729586,113.61,113.52,13.2115]
[1644499737690,0.02729586,113.61,113.53,38.50777184]
[1644499737991,13.23879586,113.62,113.53,38.50777184]
[1644499738191,0.02729586,113.61,113.53,38.50777184]
[1644499738391,13.23879586,113.62,113.53,38.50777184]
[1644499738791,13.23879586,113.62,113.51,17.6152]
[1644499738992,13.23879586,113.62,113.47,4.402]
[1644499738993,13.2154,113.59,113.47,4.402]
[1644499739291,4.43129586,113.58,113.44,6.1349751]
[1644499739492,4.404,113.58,113.44,1.7309751]
[1644499739699,0.02729586,113.57,113.45,4.404]
[1644499739992,12.70729586,113.57,113.46,46.95355117]
[1644499740398,25.92499586,113.57,113.48,42.18612532]
[1644499740597,4.404,113.56,113.48,42.18612532]
[1644499740796,12.68,113.55,113.48,42.18612532]
[1644499740996,12.68,113.55,113.42,14.4109751]
[1644499741198,4.405,113.54,113.42,14.4109751]
[1644499741397,4.405,113.54,113.42,12.68]
[1644499741801,17.6266,113.54,113.45,13.2205]
[1644499742002,17.6266,113.54,113.46,47.49005243]
[1644499742201,12.68,113.55,113.46,47.49005243]
[1644499742402,12.68,113.57,113.46,47.49005243]
[1644499742602,0.02729586,113.55,113.46,47.49005243]
[1644499742802,0.02729586,113.56,113.46,47.49005243]
[1644499743002,0.02729586,113.55,113.46,47.49005243]
[1644499743202,0.02729586,113.56,113.46,47.49005243]
[1644499743805,13.2191,113.55,113.46,60.71025243]
[1644499744002,17.6241,113.55,113.46,60.71025243]
[1644499744604,17.65139586,113.55,113.46,60.71025243]
[1644499746205,13.24639586,113.55,113.46,60.71025243]
[1644499746407,13.49639586,113.55,113.46,60.71025243]
[1644499747226,13.2225,113.52,113.46,47.49005243]
[1644499747429,13.2225,113.52,113.44,13.2221]
[1644499747726,4.405,113.54,113.36,67.95218473]
[1644499747727,4.406,113.51,113.36,67.95218473]
[1644499747926,12.68,113.52,113.37,12.68]
[1644499748327,12.68,113.52,113.42,13.224]
[1644499748328,13.225,113.5,113.42,13.224]
[1644499748627,13.225,113.5,113.43,35.67703158]
[1644499749427,13.225,113.5,113.41,13.2263]
[1644499749627,4.407,113.49,113.41,13.2263]
[1644499749828,13.2274,113.48,113.38,44.0877]
[1644499750026,4.408,113.47,113.38,44.0877]
[1644499750227,4.408,113.47,113.36,0.024]
[1644499750528,1.25262644,113.5,113.36,0.024]
[1644499750529,13.93262644,113.48,113.39,43.73084628]
[1644499751130,13.2282,113.47,113.39,43.73084628]
[1644499751633,4.408,113.46,113.39,43.73084628]
[1644499751828,58.28582644,113.48,113.39,43.73084628]
[1644499752530,57.0332,113.48,113.39,43.73084628]
[1644499752834,13.2298,113.46,113.39,43.73084628]
[1644499755833,13.4798,113.46,113.39,43.73084628]
[1644499757936,0.25,113.46,113.39,56.95924628]
[1644499758337,0.25,113.5,113.39,56.95924628]
[1644499758538,4.407,113.49,113.39,56.95924628]
[1644499758737,4.657,113.49,113.39,56.95924628]
[1644499758936,0.25,113.49,113.39,56.95924628]
[1644499759341,4.657,113.5,113.39,56.95924628]
[1644499759741,13.2257,113.49,113.39,58.69022138]
[1644499759938,4.657,113.5,113.39,58.69022138]
[1644499760138,4.657,113.5,113.39,56.95924628]
[1644499760740,17.8815,113.5,113.39,56.95924628]
[1644499761140,31.81412644,113.5,113.39,56.95924628]
[1644499761341,1.25262644,113.49,113.39,56.95924628]
[1644499761542,17.087,113.48,113.39,56.95924628]
[1644499762341,17.6341,113.48,113.39,56.95924628]
[1644499762541,12.68,113.5,113.4,1.7309751]
[1644499762742,4.43429586,113.52,113.43,13.224]
[1644499762743,5.6869223,113.52,113.43,13.224]
[1644499762943,5.6859223,113.53,113.43,13.224]
[1644499763243,0.02729586,113.52,113.44,42.10362807]
[1644499763444,5.6859223,113.53,113.44,42.10362807]
[1644499763643,1.2799223,113.53,113.44,42.10362807]
[1644499763842,13.2242,113.5,113.44,42.10362807]
[1644499764743,13.4742,113.5,113.44,42.10362807]
[1644499765945,5.6859223,113.52,113.44,55.32672807]
[1644499766144,1.2799223,113.53,113.44,55.32672807]
[1644499766346,1.2799223,113.54,113.44,68.00672807]
[1644499766546,0.02729586,113.53,113.44,68.00672807]
[1644499766746,1.2799223,113.54,113.44,68.00672807]
[1644499766949,1.25262644,113.54,113.44,68.00672807]
[1644499767158,0.02729586,113.53,113.44,68.25672807]
[1644499768448,0.02729586,113.53,113.44,68.00672807]
[1644499768647,0.02729586,113.53,113.44,55.32672807]
[1644499768849,1.25262644,113.52,113.44,55.32672807]
[1644499769046,1.25262644,113.51,113.44,42.10362807]
[1644499769547,1.25262644,113.5,113.42,13.2248]
[1644499770349,14.5047223,113.5,113.42,13.2248]
[1644499770548,14.5047223,113.5,113.43,48.31832911]
[1644499770749,14.47742644,113.5,113.43,48.31832911]
[1644499771747,14.47742644,113.5,113.43,61.54272911]
[1644499771952,13.2248,113.5,113.43,61.54272911]
[1644499772350,1.2799223,113.51,113.43,61.54272911]
[1644499772547,1.25262644,113.52,113.43,61.54272911]
[1644499772748,0.02729586,113.51,113.43,61.54272911]
[1644499773147,1.25262644,113.52,113.43,61.54272911]
[1644499773549,14.47402644,113.52,113.43,61.54272911]
[1644499774749,14.47402644,113.52,113.43,61.79272911]
[1644499775348,14.47402644,113.52,113.43,61.54272911]
[1644499775849,14.72402644,113.52,113.43,61.79272911]
[1644499776049,1.50262644,113.52,113.43,61.79272911]
[1644499776450,1.5299223,113.52,113.43,61.79272911]
[1644499776852,1.2799223,113.52,113.43,61.79272911]
[1644499777052,0.02729586,113.52,113.46,13.2162]
[1644499777352,1.25262644,113.54,113.47,34.91701262]
[1644499777555,1.25262644,113.55,113.47,34.91701262]
[1644499777752,1.2799223,113.55,113.47,34.91701262]
[1644499778454,1.2799223,113.55,113.5,47.84450442]
[1644499778655,1.25262644,113.55,113.5,47.84450442]
[1644499778852,0.02729586,113.57,113.5,47.84450442]
[1644499779053,1.25262644,113.58,113.52,38.26561547]
[1644499779254,0.02729586,113.57,113.52,38.26561547]
[1644499779453,1.25262644,113.59,113.52,38.26561547]
[1644499779653,0.02729586,113.58,113.52,38.26561547]
[1644499779854,1.25262644,113.59,113.52,38.26561547]
[1644499780254,1.25262644,113.58,113.52,38.26561547]
[1644499780454,1.50262644,113.59,113.52,38.26561547]
[1644499780853,1.50262644,113.59,113.51,9.007]
[1644499780854,1.50262644,113.59,113.54,43.36883588]
[1644499781054,1.25262644,113.6,113.54,43.36883588]
[1644499781655,1.25262644,113.61,113.54,43.36883588]
[1644499781856,1.25262644,113.61,113.54,56.57833588]
[1644499782057,1.25262644,113.62,113.54,56.57833588]
[1644499782856,1.2799223,113.63,113.54,56.57833588]
[1644499783057,1.25262644,113.63,113.54,56.57833588]
[1644499783257,1.25262644,113.62,113.54,56.57833588]
[1644499783457,1.2799223,113.62,113.54,56.57833588]
[1644499784057,0.02729586,113.62,113.54,56.57833588]
[1644499784256,5.65362644,113.63,113.54,56.57833588]
[1644499784456,1.25262644,113.63,113.54,56.57833588]
[1644499784657,1.2799223,113.63,113.54,56.57833588]
[1644499785261,1.5299223,113.63,113.54,56.57833588]
[1644499785857,14.7385223,113.63,113.54,56.57833588]
[1644499786659,14.71122644,113.63,113.54,56.57833588]
[1644499787958,19.11222644,113.63,113.54,56.57833588]
[1644499789060,14.71122644,113.63,113.54,56.57833588]
[1644499789962,13.2086,113.63,113.54,56.57833588]
[1644499790160,13.23589586,113.63,113.54,60.97933588]
[1644499790862,13.23589586,113.63,113.54,56.57833588]
[1644499791060,0.02729586,113.63,113.54,43.36883588]
[1644499792063,1.2799223,113.63,113.54,43.36883588]
[1644499793769,1.50262644,113.63,113.54,43.36883588]
[1644499794370,1.25262644,113.63,113.54,43.36883588]
[1644499794568,1.2799223,113.64,113.54,43.36883588]
[1644499794771,0.02729586,113.63,113.54,43.36883588]
[1644499794970,0.02729586,113.63,113.54,43.61883588]
[1644499795171,0.02729586,113.64,113.54,43.61883588]
[1644499796475,0.02729586,113.64,113.54,48.01983588]
[1644499797682,0.02729586,113.64,113.54,47.76983588]
[1644499797882,5.6809223,113.65,113.54,43.36883588]
[1644499798087,0.02729586,113.63,113.54,43.36883588]
[1644499798284,5.65362644,113.63,113.54,43.36883588]
[1644499798485,4.42829586,113.63,113.54,43.36883588]
[1644499798785,18.3609223,113.63,113.54,43.36883588]
[1644499799185,13.9599223,113.63,113.54,43.36883588]
[1644499799386,12.70729586,113.63,113.54,43.36883588]
[1644499799584,13.9599223,113.63,113.54,43.36883588]
[1644499800390,18.3609223,113.63,113.54,43.36883588]
[1644499801289,18.3609223,113.63,113.5,4.401]
[1644499801290,18.6109223,113.63,113.5,4.401]
[1644499801488,35.1885723,113.63,113.5,4.401]
[1644499801686,1.25262644,113.62,113.5,4.401]
[1644499801890,160.11223891,113.6,113.43,1.24828473]
[1644499802087,1.25262644,113.56,113.39,16.19491185]
[1644499802289,17.11329586,113.55,113.4,4.405]
[1644499802489,1.25262644,113.53,113.4,37.46842134]
[1644499802688,17.086,113.52,113.4,37.46842134]
[1644499802893,43.99179924,113.52,113.36,4.43]
[1644499803090,1.25262644,113.5,113.37,0.024]
[1644499803289,17.087,113.49,113.36,0.024]
[1644499803510,17.087,113.49,113.31,1.32788473]
[1644499803511,50.1513127,113.49,113.31,1.32788473]
[1644499803714,2.23122154,113.48,113.34,0.024]
[1644499803913,2.23122154,113.48,113.31,1.32788473]
[1644499803914,17.088,113.47,113.32,36.95390267]
[1644499804113,17.088,113.47,113.33,0.024]
[1644499804314,32.68997506,113.47,113.33,0.024]
[1644499804514,3.48384798,113.46,113.33,0.024]
[1644499804815,27.22725506,113.45,113.33,0.024]
[1644499805216,17.089,113.45,113.33,0.024]
[1644499805416,2.23122154,113.44,113.33,0.024]
[1644499805618,4.409,113.43,113.33,0.024]
[1644499805816,12.68,113.42,113.33,0.024]
[1644499806420,4.41,113.41,113.33,0.024]
[1644499806617,17.09,113.41,113.31,0.1036]
[1644499806820,19.32122154,113.41,113.31,0.1036]
[1644499808220,17.09,113.41,113.31,0.1036]
[1644499808423,2.23122154,113.4,113.31,0.1036]
[1644499808620,17.09,113.39,113.31,0.1036]
[1644499808824,30.3358,113.39,113.31,0.0796]
[1644499809021,8.57980086,113.38,113.31,0.0796]
[1644499809222,4.31733509,113.35,113.31,0.0096]
[1644499809422,21.40733509,113.34,113.31,0.0096]
[1644499809622,3.03,113.33,113.26,0.024]
[1644499809823,17.093,113.32,113.25,2.53863654]
[1644499810023,17.093,113.32,113.25,2.51463654]
[1644499810328,0.31402109,113.29,113.22,0.024]
[1644499810523,17.094,113.28,113.21,3.76019322]
[1644499810724,19.32522154,113.28,113.21,3.76019322]
[1644499810931,17.094,113.28,113.21,3.76019322]
[1644499811327,2.23122154,113.27,113.21,3.76019322]
[1644499811526,45.0,113.25,113.15,0.024]
[1644499811726,17.096,113.24,113.14,6.1968114]
[1644499811924,0.30821402,113.2,113.14,0.37653561]
[1644499812129,17.098,113.19,113.14,0.35253561]
[1644499812326,44.0,113.17,113.09,0.024]
[1644499812525,17.098,113.16,113.08,15.06993605]
[1644499812728,12.68,113.15,113.08,15.04593605]
[1644499812926,4.42,113.14,113.03,0.024]
[1644499813224,12.68,113.13,113.03,0.024]
[1644499813428,158.55,113.11,113.02,0.4662286]
[1644499813626,54.389582,113.1,113.02,0.4662286]
[1644499813834,37.58982639,113.09,113.01,24.77189363]
[1644499814031,0.31656975,113.05,112.91,3.121315]
[1644499814229,4.425,113.04,112.94,0.024]
[1644499814426,0.30385419,113.03,112.91,3.121315]
[1644499814661,0.30385419,113.03,112.88,13.5164]
[1644499814662,158.55,113.01,112.88,13.5164]
[1644499814831,17.105,113.02,112.88,0.02]
[1644499814832,158.55,112.97,112.88,0.02]
[1644499815032,17.106,112.96,112.88,0.02]
[1644499815229,4.426,112.96,112.88,0.02]
[1644499815827,171.23,112.95,112.88,0.02]
[1644499816028,171.23,112.95,112.79,3.121315]
[1644499816029,158.55,112.93,112.79,3.121315]
[1644499816229,12.68,112.92,112.79,3.121315]
[1644499816830,12.68,112.92,112.75,3.121315]
[1644499816831,171.23,112.92,112.75,3.121315]
[1644499817029,171.23,112.92,112.72,74.45254714]
[1644499817230,171.23,112.92,112.72,74.90254714]
[1644499817432,89.0,112.91,112.72,60.77254714]
[1644499817632,0.31703515,112.87,112.73,0.024]
[1644499817830,158.55,112.83,112.73,0.024]
[1644499818032,12.68,112.82,112.73,0.024]
[1644499818231,12.68,112.82,112.72,96.10083078]
[1644499818433,158.55,112.87,112.75,39.33759291]
[1644499818632,12.68,112.84,112.75,39.33759291]
[1644499818835,12.68,112.83,112.76,1.75895611]
[1644499819034,12.68,112.83,112.72,60.77254714]
[1644499819035,158.55,112.84,112.72,60.77254714]
[1644499819232,12.68,112.82,112.73,0.024]
[1644499819434,17.113,112.81,112.72,60.79654714]
[1644499819632,12.68,112.81,112.72,60.79654714]
[1644499819835,12.93,112.81,112.72,60.79654714]
[1644499820035,4.31733509,112.76,112.73,39.12909641]
[1644499820236,8.63467018,112.76,112.72,60.77254714]
[1644499821235,8.63467018,112.76,112.73,39.53140829]
[1644499821437,3.97476573,112.75,112.7,0.22183458]
[1644499821739,12.68,112.74,112.65,0.16551569]
[1644499821936,17.116,112.74,112.65,0.16551569]
[1644499822734,2.23122154,112.73,112.65,0.16551569]
[1644499822935,17.116,112.72,112.65,0.16551569]
[1644499823335,12.68,112.72,112.65,0.16551569]
[1644499823837,19.785,112.72,112.65,0.16551569]
[1644499824442,178.335,112.72,112.65,0.00551569]
[1644499824636,6.66822154,112.71,112.65,0.00551569]
[1644499824838,12.68,112.7,112.65,0.00551569]
[1644499825036,4.437,112.69,112.65,0.00551569]
[1644499825237,4.31733509,112.67,112.65,0.00551569]
[1644499825436,27.49753505,112.66,112.65,0.00551569]
[1644499825638,27.49753505,112.66,112.51,0.22]
[1644499825838,158.55,112.63,112.52,0.024]
[1644499826136,158.55,112.61,112.52,0.024]
[1644499826337,171.23,112.6,112.51,0.22]
[1644499826536,171.23,112.6,112.5,24.72]
[1644499826537,67.0,112.57,112.5,24.72]
[1644499826737,67.0,112.57,112.49,86.53011064]
[1644499826738,71.0,112.55,112.49,86.53011064]
[1644499826939,4.442,112.54,112.49,0.00011064]
[1644499827136,12.68,112.53,112.49,0.00011064]
[1644499827337,293.994,112.52,112.39,98.92671095]
[1644499827537,137.67522154,112.52,112.39,98.92671095]
[1644499827737,171.23,112.51,112.39,98.92671095]
[1644499827937,158.55,112.47,112.31,7.0]
[1644499828139,42.395607,112.46,112.31,7.0]
[1644499828339,37.429569,112.45,112.31,7.0]
[1644499828639,158.55,112.42,112.31,6.5]
[1644499828839,158.55,112.4,112.31,6.5]
[1644499829039,12.68,112.39,112.31,6.5]
[1644499829238,12.68,112.39,112.31,8.29683718]
[1644499829239,12.68,112.38,112.31,8.29683718]
[1644499829441,158.55,112.35,112.31,0.00683718]
[1644499829663,12.68,112.34,112.28,0.44514318]
[1644499829839,171.23,112.34,112.29,0.00380049]
[1644499830042,158.55,112.32,112.29,0.00380049]
[1644499830248,158.55,112.3,112.27,0.006]
[1644499830441,12.68,112.29,112.27,0.006]
[1644499830744,193.937338,112.28,112.27,0.006]
[1644499830947,194.568045,112.28,112.27,0.006]
[1644499831144,36.018045,112.28,112.27,0.006]